bitfinex-derivatives/quotes_SOLF0:USTF0_20251025
["timestamp","ask_amount","ask_price","bid_price","bid_amount"]
[1761383765412,6.61803397,194.51,194.46,1.13]
[1761383765615,3.96803397,194.5,194.46,1.13]
[1761383765817,2.65,194.51,194.46,1.13]
[1761383766018,6.61805683,194.5,194.46,1.13]
[1761383766223,2.65,194.5,194.46,1.13]
[1761383768127,2.64,194.53,194.46,1.13]
[1761383768327,4.77749495,194.54,194.46,1.13]
[1761383768328,6.59681205,194.52,194.46,1.13]
[1761383768518,6.59681205,194.51,194.46,1.13]
[1761383768714,3.95681205,194.5,194.46,1.13]
[1761383768921,2.64,194.51,194.46,1.13]
[1761383769124,3.95681935,194.5,194.46,1.13]
[1761383769322,2.64,194.5,194.46,1.13]
[1761383772624,3.9573928,194.49,194.43,62.16]
[1761383772825,2.64,194.48,194.44,1.13]
[1761383776835,2.64,194.48,194.43,62.16]
[1761383776836,2.64,194.46,194.43,63.29]
[1761383777032,2.64,194.46,194.44,1.13]
[1761383779633,2.64,194.46,194.43,63.29]
[1761383779833,2.64,194.46,194.43,62.16]
[1761383780034,2.64,194.46,194.44,1.13]
[1761383782541,2.64,194.46,194.43,62.16]
[1761383783133,2.64,194.46,194.43,63.29]
[1761383783934,1.48929134,194.47,194.4,1.13]
[1761383783935,2.64,194.43,194.4,1.13]
[1761383784140,2.64,194.43,194.39,1.13]
[1761383784337,2.64,194.43,194.41,1.13]
[1761383784747,2.64,194.43,194.4,62.18]
[1761383790648,1.48929134,194.41,194.4,62.18]
[1761383790850,4.12929134,194.41,194.4,62.18]
[1761383791952,2.64,194.4,194.37,1.13]
[1761383792652,2.64,194.4,194.35,62.16]
[1761383792847,2.64,194.4,194.36,1.13]
[1761383793252,1.48929134,194.38,194.36,1.13]
[1761383793552,2.64,194.37,194.36,1.13]
[1761383793850,2.64,194.37,194.35,63.29]
[1761383794045,2.64,194.37,194.35,62.16]
[1761383795850,4.12929134,194.38,194.36,1.13]
[1761383796650,1.48929134,194.38,194.36,1.13]
[1761383796851,2.64,194.4,194.36,1.13]
[1761383803660,2.64,194.4,194.35,62.16]
[1761383803858,2.64,194.4,194.35,63.29]
[1761383806962,2.64,194.4,194.35,62.16]
[1761383807163,2.64,194.4,194.36,1.13]
[1761383809858,2.64,194.4,194.35,62.16]
[1761383810257,2.64,194.4,194.33,1.13]
[1761383810462,2.64,194.4,194.33,63.29]
[1761383811775,2.8,194.39,194.33,63.29]
[1761383815363,2.8,194.36,194.33,63.29]
[1761383815871,2.8,194.36,194.34,1.13]
[1761383819967,2.8,194.36,194.33,63.29]
[1761383822062,2.8,194.36,194.29,62.16]
[1761383822264,2.8,194.36,194.26,4.6323]
[1761383822265,2.8,194.36,194.3,1.13]
[1761383823167,4.79369566,194.42,194.3,1.13]
[1761383823168,2.83,194.33,194.3,1.13]
[1761383823872,2.83,194.33,194.29,1.13]
[1761383833089,2.83,194.33,194.26,62.16]
[1761383833485,1.48929134,194.31,194.26,63.29]
[1761383833691,2.71,194.3,194.26,63.29]
[1761383834693,2.71,194.3,194.23,1.13]
[1761383837298,2.71,194.28,194.23,1.13]
[1761383843402,2.71,194.31,194.23,1.13]
[1761383843603,6.80877535,194.3,194.23,1.13]
[1761383843900,2.71,194.3,194.23,1.13]
[1761383852606,2.71,194.33,194.23,1.13]
[1761383853207,4.09885108,194.33,194.23,1.13]
[1761383853408,2.71,194.32,194.23,1.13]
[1761383854099,2.71,194.32,194.25,1.13]
[1761383858016,4.07123435,194.34,194.26,1.13]
[1761383858220,2.82,194.35,194.28,1.13]
[1761383858907,6.89241352,194.35,194.28,1.13]
[1761383859109,2.82,194.35,194.28,1.13]
[1761383860206,6.89311981,194.35,194.28,1.13]
[1761383860510,2.82,194.35,194.28,1.13]
[1761383861109,6.89369587,194.35,194.28,1.13]
[1761383861312,2.82,194.35,194.28,1.13]
[1761383864012,2.82,194.35,194.28,4.6316]
[1761383864219,2.82,194.35,194.29,1.13]
[1761383866120,2.82,194.35,194.3,1.13]
[1761383867916,2.82,194.38,194.31,1.13]
[1761383868116,4.0763599,194.37,194.31,1.13]
[1761383868318,2.331938,194.39,194.31,1.13]
[1761383868319,2.82,194.36,194.31,1.13]
[1761383869630,6.85113692,194.38,194.31,1.13]
[1761383870120,4.03113692,194.38,194.31,1.13]
[1761383870317,2.82,194.37,194.31,1.13]
[1761383870713,2.82,194.37,194.32,62.16]
[1761383870918,2.82,194.37,194.33,1.13]
[1761383871324,4.79369566,194.43,194.33,1.13]
[1761383871325,2.82,194.4,194.33,1.13]
[1761383872320,2.82,194.37,194.3,63.29]
[1761383875824,2.82,194.37,194.31,1.13]
[1761383887032,2.82,194.37,194.32,1.13]
[1761383891024,2.62,194.39,194.33,1.13]
[1761383893132,2.62,194.39,194.33,5.7605]
[1761383893334,2.62,194.39,194.34,1.13]
[1761383893523,2.62,194.43,194.36,1.13]
[1761383893727,6.63758759,194.43,194.36,1.13]
[1761383893931,2.62,194.43,194.36,1.13]
[1761383895336,2.62,194.42,194.36,1.13]
[1761383909742,2.62,194.42,194.37,1.13]
[1761383921263,2.62,194.42,194.37,5.7595]
[1761383921567,2.62,194.42,194.38,1.13]
[1761383936775,2.81,194.44,194.41,1.13]
[1761383938973,2.81,194.44,194.39,1.13]
[1761383939887,2.81,194.44,194.4,63.25]
[1761383941889,2.84,194.47,194.42,1.13]
[1761383942081,2.84,194.45,194.42,1.13]
[1761383944590,2.84,194.45,194.43,62.0]
[1761383944993,2.84,194.45,194.42,1.13]
[1761383947592,1.48991294,194.5,194.43,1.13]
[1761383947593,2.84,194.48,194.43,1.13]
[1761383948090,2.84,194.48,194.44,1.13]
[1761383948290,2.84,194.48,194.45,62.1]
[1761383948996,2.84,194.48,194.45,63.23]
[1761383949289,2.84,194.5,194.46,1.13]
[1761383955995,2.84,194.5,194.45,62.1]
[1761383956695,2.84,194.5,194.45,63.23]
[1761383958196,2.84,194.5,194.45,62.1]
[1761383958395,2.84,194.5,194.45,63.23]
[1761383959584,2.84,194.5,194.46,62.1]
[1761383962098,2.84,194.5,194.45,62.1]
[1761383965198,2.32601017,194.49,194.4,62.08]
[1761383965397,2.84,194.48,194.4,62.08]
[1761383965994,2.84,194.48,194.4,66.7089]
[1761383966302,2.84,194.48,194.4,67.8389]
[1761383967099,2.84,194.48,194.41,1.13]
[1761383974809,2.84,194.47,194.41,1.13]
[1761383980603,2.68,194.46,194.41,1.13]
[1761383987017,2.68,194.46,194.4,62.08]
[1761383987806,2.68,194.46,194.4,63.21]
[1761383990007,2.68,194.46,194.4,125.21]
[1761383992018,2.68,194.46,194.4,63.21]
[1761383992213,2.68,194.46,194.4,62.08]
[1761383992816,2.68,194.45,194.4,62.08]
[1761383993017,2.68,194.45,194.4,63.21]
[1761383993616,2.68,194.45,194.41,1.13]
[1761383994716,2.68,194.43,194.34,1.13]
[1761383995014,2.68,194.41,194.31,1.13]
[1761383995218,2.68,194.41,194.32,62.1]
[1761383995414,2.68,194.39,194.32,62.1]
[1761383995723,2.68,194.39,194.31,1.13]
[1761383996016,2.68,194.39,194.32,62.1]
[1761383996823,2.68,194.39,194.32,63.23]
[1761384000323,2.68,194.39,194.33,1.13]
[1761384017025,2.68,194.39,194.32,62.1]
[1761384020033,2.68,194.39,194.3,1.13]
[1761384020238,2.68,194.39,194.3,63.25]
[1761384021936,2.68,194.39,194.31,1.13]
[1761384026447,6.617989,194.38,194.3,62.12]
[1761384026752,2.65,194.37,194.3,62.12]
[1761384028145,2.65,194.37,194.3,63.25]
[1761384032749,2.65,194.37,194.31,1.13]
[1761384035256,2.65,194.36,194.31,1.13]
[1761384040050,2.65,194.36,194.33,1.13]
[1761384045360,15.0,194.39,194.33,1.13]
[1761384045566,15.0,194.39,194.35,1.13]
[1761384045567,6.63912072,194.38,194.35,1.13]
[1761384045761,2.67,194.38,194.35,1.13]
[1761384049870,2.67,194.41,194.35,1.13]
[1761384050169,6.63974,194.4,194.35,1.13]
[1761384050365,3.96974,194.39,194.35,1.13]
[1761384050570,2.67,194.4,194.35,1.13]
[1761384050770,3.97006452,194.39,194.35,1.13]
[1761384050971,2.67,194.4,194.35,1.13]
[1761384051169,3.9700638,194.39,194.35,1.13]
[1761384051363,2.67,194.4,194.35,1.13]
[1761384051564,3.96998209,194.39,194.35,1.13]
[1761384051870,2.67,194.4,194.36,1.13]
[1761384052070,3.96998316,194.39,194.36,1.13]
[1761384052272,2.67,194.4,194.36,1.13]
[1761384053373,2.67,194.42,194.36,1.13]
[1761384053573,6.63978591,194.41,194.36,1.13]
[1761384053762,3.96978591,194.4,194.36,1.13]
[1761384053964,2.67,194.41,194.36,1.13]
[1761384054161,3.96978591,194.4,194.36,1.13]
[1761384054470,2.67,194.41,194.36,1.13]
[1761384054669,3.96949144,194.4,194.36,1.13]
[1761384054873,2.67,194.41,194.36,1.13]
[1761384055070,6.63908695,194.4,194.36,1.13]
[1761384055267,2.67,194.4,194.36,1.13]
[1761384063882,2.67,194.4,194.34,1.13]
[1761384064975,2.67,194.4,194.31,1.13]
[1761384065181,2.8,194.39,194.31,1.13]
[1761384065377,2.8,194.38,194.31,1.13]
[1761384066379,2.8,194.36,194.31,1.13]
[1761384073484,4.04629144,194.39,194.31,1.13]
[1761384073693,4.04629144,194.38,194.32,1.13]
[1761384073887,2.76,194.39,194.32,1.13]
[1761384074091,4.04632577,194.38,194.32,1.13]
[1761384074293,2.76,194.39,194.32,1.13]
[1761384074601,6.80648962,194.38,194.32,1.13]
[1761384074781,2.76,194.38,194.32,1.13]
[1761384076093,2.76,194.38,194.33,1.13]
[1761384087407,2.76,194.36,194.3,63.21]
[1761384088199,2.76,194.36,194.31,1.13]
[1761384092308,2.76,194.36,194.3,62.08]
[1761384092501,2.76,194.34,194.28,1.13]
[1761384104714,2.76,194.34,194.27,62.08]
[1761384105818,2.76,194.34,194.27,63.21]
[1761384108617,2.76,194.34,194.28,1.13]
[1761384110721,2.74,194.37,194.28,1.13]
[1761384111019,6.87618546,194.36,194.28,1.13]
[1761384111316,4.13618546,194.35,194.28,1.13]
[1761384111514,2.74,194.36,194.28,1.13]
[1761384111707,4.13613359,194.35,194.28,1.13]
[1761384111912,2.74,194.36,194.28,1.13]
[1761384112121,2.74,194.34,194.29,1.13]
[1761384113319,2.74,194.38,194.3,1.13]
[1761384113519,6.87532615,194.37,194.3,1.13]
[1761384113722,4.13532615,194.36,194.3,1.13]
[1761384113915,2.74,194.37,194.3,1.13]
[1761384114123,4.12194883,194.36,194.3,1.13]
[1761384114420,2.74,194.37,194.3,1.13]
[1761384114622,6.8619518,194.36,194.3,1.13]
[1761384114916,2.74,194.36,194.3,2.32895037]
[1761384115119,2.74,194.36,194.31,1.13]
[1761384119626,2.7,194.4,194.31,1.13]
[1761384119818,2.7,194.38,194.31,1.13]
[1761384120014,4.10889652,194.37,194.31,1.13]
[1761384120222,2.7,194.38,194.31,1.13]
[1761384120416,6.80905383,194.37,194.31,1.13]
[1761384120614,2.7,194.37,194.31,1.13]
[1761384121923,2.7,194.37,194.33,1.13]
[1761384122128,2.7,194.37,194.35,1.13]
[1761384122823,2.7,194.4,194.35,1.13]
[1761384125826,4.77161158,194.45,194.36,1.13]
[1761384126019,2.7,194.43,194.36,1.13]
[1761384126722,2.7,194.43,194.37,1.13]
[1761384128320,2.7,194.43,194.37,63.13]
[1761384129527,2.7,194.43,194.38,1.13]
[1761384135226,2.7,194.43,194.36,5.7597]
[1761384135423,2.7,194.43,194.36,4.6297]
[1761384135619,2.7,194.43,194.36,5.7597]
[1761384139632,2.7,194.43,194.37,1.13]
[1761384141725,2.7,194.43,194.37,62.06]
[1761384142730,2.7,194.43,194.38,1.13]
[1761384151236,2.7,194.43,194.37,62.06]
[1761384151437,2.7,194.43,194.37,63.19]
[1761384154744,2.7,194.43,194.38,1.13]
[1761384159247,2.7,194.43,194.39,62.06]
[1761384160341,2.67,194.41,194.39,63.19]
[1761384161638,2.67,194.41,194.39,62.06]
[1761384164551,2.67,194.41,194.37,1.13]
[1761384164752,2.67,194.41,194.39,1.13]
[1761384167249,2.67,194.41,194.38,62.04]
[1761384168349,4.05639565,194.4,194.38,62.04]
[1761384168549,2.67,194.39,194.38,62.04]
[1761384170857,2.67,194.43,194.38,63.17]
[1761384171060,2.67,194.41,194.38,63.17]
[1761384171259,4.05686586,194.4,194.38,63.17]
[1761384171450,2.67,194.41,194.38,63.17]
[1761384171747,4.05690307,194.4,194.38,63.17]
[1761384171950,2.67,194.41,194.38,63.17]
[1761384172162,4.05690307,194.4,194.38,63.17]
[1761384172369,2.67,194.41,194.38,63.17]
[1761384172570,6.72695291,194.4,194.38,63.17]
[1761384172871,2.67,194.4,194.38,63.17]
[1761384177169,2.67,194.38,194.33,1.48996946]
[1761384177374,2.67,194.38,194.34,63.17]
[1761384177669,2.67,194.38,194.34,62.04]
[1761384178874,2.67,194.38,194.34,63.17]
[1761384182977,2.67,194.38,194.34,62.04]
[1761384183378,4.04966076,194.37,194.34,62.04]
[1761384183683,2.7,194.36,194.34,62.04]
[1761384186380,2.7,194.36,194.31,1.13]
[1761384186580,2.7,194.36,194.33,1.13]
[1761384190679,15.0,194.42,194.33,1.13]
[1761384190883,6.90224481,194.41,194.33,1.13]
[1761384191084,4.05224481,194.4,194.33,1.13]
[1761384191285,4.05224481,194.39,194.33,1.13]
[1761384191589,2.85,194.41,194.33,1.13]
[1761384191792,6.90218001,194.4,194.33,1.13]
[1761384191980,2.85,194.4,194.33,1.13]
[1761384192690,2.85,194.4,194.35,1.13]
[1761384194597,2.85,194.4,194.36,1.13]
[1761384195794,4.05703414,194.39,194.36,1.13]
[1761384195994,2.85,194.4,194.36,1.13]
[1761384198989,75.83389913,194.43,194.37,1.13]
[1761384199196,2.85,194.41,194.37,1.13]
[1761384202298,2.85,194.41,194.38,1.48996946]
[1761384202506,2.85,194.42,194.39,1.13]
[1761384202703,4.06015566,194.41,194.39,1.13]
[1761384203005,2.85,194.42,194.39,1.13]
[1761384203200,4.06056895,194.41,194.39,1.13]
[1761384203500,2.85,194.42,194.39,1.13]
[1761384205606,75.83389913,194.43,194.39,1.13]
[1761384205791,4.06443648,194.42,194.39,1.13]
[1761384205996,2.85,194.42,194.39,1.13]
[1761384206898,2.85,194.42,194.38,62.04]
[1761384207297,2.85,194.42,194.38,63.17]
[1761384207813,2.85,194.42,194.39,1.13]
[1761384211400,2.85,194.42,194.38,62.04]
[1761384212309,2.85,194.4,194.35,1.13]
[1761384212504,2.85,194.4,194.34,62.04]
[1761384212706,2.85,194.38,194.34,63.17]
[1761384215010,2.85,194.38,194.17,28.81614592]
[1761384215202,2.85,194.38,193.96,5.147]
[1761384215203,2.85,194.18,194.0,205.72]
[1761384215404,2.85,194.12,194.0,205.72]
[1761384215703,2.85,194.12,193.94,15.52282447]
[1761384215904,2.85,194.12,193.95,39.12]
[1761384216106,2.85,194.12,193.94,2.32774265]
[1761384216107,2.85,194.12,193.99,15.43]
[1761384216307,2.32774265,194.15,193.99,15.43]
[1761384216507,2.85,194.15,194.0,283.83]
[1761384216710,2.85,194.15,194.02,20.0679]
[1761384216904,2.85,194.15,194.03,62.68]
[1761384217315,5.17774265,194.15,194.04,62.7]
[1761384217818,5.17774265,194.15,194.05,62.7]
[1761384218009,5.17774265,194.15,194.06,62.0]
[1761384220017,2.85,194.15,194.06,62.0]
[1761384220719,2.85,194.15,194.07,62.7]
[1761384222812,2.85,194.15,194.06,62.0]
[1761384223007,2.85,194.15,194.07,62.7]
[1761384226021,2.85,194.15,194.06,62.0]
[1761384226423,2.85,194.15,194.07,62.7]
[1761384226618,2.85,194.15,194.08,62.7]
[1761384227325,2.85,194.15,194.09,62.7]
[1761384228727,2.85,194.15,194.06,62.0]
[1761384228929,2.85,194.15,194.07,62.68]
[1761384232524,2.85,194.15,194.08,62.68]
[1761384233024,2.74,194.19,194.09,2.32774265]
[1761384233224,2.74,194.19,194.1,62.66]
[1761384243642,2.74,194.19,194.09,2.32774265]
[1761384243832,2.74,194.19,194.1,62.6]
[1761384244345,6.87376355,194.19,194.1,62.6]
[1761384244536,2.74,194.19,194.1,62.6]
[1761384245136,6.87609961,194.19,194.1,62.6]
[1761384245340,2.74,194.19,194.1,62.6]
[1761384245538,2.87,194.17,194.08,4.6364]
[1761384245732,7.0077261,194.17,194.12,2.32774265]
[1761384246041,2.87,194.17,194.12,2.32774265]
[1761384246753,2.87,194.17,194.13,205.98]
[1761384247044,4.13776101,194.19,194.13,205.98]
[1761384247445,2.87,194.2,194.13,205.98]
[1761384247638,4.14811589,194.19,194.13,205.98]
[1761384247945,2.87,194.2,194.14,62.62]
[1761384248132,6.88811429,194.19,194.14,62.62]
[1761384248340,4.15046233,194.18,194.14,62.62]
[1761384248536,2.74,194.19,194.14,62.62]
[1761384248739,4.15046233,194.18,194.14,62.62]
[1761384248935,2.74,194.21,194.14,62.62]
[1761384249146,4.15067075,194.2,194.14,62.62]
[1761384249445,6.89067075,194.19,194.14,62.62]
[1761384249646,2.74,194.19,194.14,62.62]
[1761384250444,4.15566641,194.18,194.14,62.62]
[1761384250637,2.74,194.19,194.14,62.62]
[1761384250838,4.1564617,194.18,194.14,62.62]
[1761384251144,2.74,194.19,194.14,62.62]
[1761384251337,4.1564617,194.18,194.14,62.62]
[1761384251538,2.74,194.19,194.14,62.62]
[1761384251846,4.15982813,194.18,194.14,62.62]
[1761384252044,2.74,194.19,194.14,62.62]
[1761384252243,4.1598304,194.18,194.13,205.98]
[1761384252443,4.1598304,194.17,194.14,62.6]
[1761384252639,2.74,194.19,194.14,62.6]
[1761384252947,4.16357331,194.18,194.14,62.6]
[1761384253150,4.16357331,194.17,194.14,62.6]
[1761384253445,4.16791946,194.16,194.14,62.6]
[1761384253748,4.77161158,194.22,194.14,62.6]
[1761384253936,4.16816407,194.21,194.14,62.6]
[1761384254133,103.80045936,194.23,194.14,62.6]
[1761384254338,6.75337939,194.22,194.14,62.6]
[1761384254538,4.01337939,194.21,194.14,62.6]
[1761384254738,4.01337939,194.2,194.14,62.6]
[1761384254938,2.74,194.22,194.14,62.6]
[1761384255139,4.01812098,194.21,194.15,2.32774265]
[1761384255349,2.74,194.22,194.15,2.32774265]
[1761384255350,4.02381199,194.2,194.15,2.32774265]
[1761384255546,2.74,194.22,194.15,6.96264265]
[1761384255740,4.02381259,194.21,194.15,6.96264265]
[1761384255936,4.02381259,194.2,194.15,6.96264265]
[1761384256146,2.74,194.22,194.15,6.96264265]
[1761384256340,4.02292792,194.21,194.15,6.96264265]
[1761384256535,4.02292792,194.2,194.15,6.96264265]
[1761384256740,4.02292792,194.19,194.15,6.96264265]
[1761384257050,2.74,194.22,194.15,6.96264265]
[1761384257246,4.0277267,194.21,194.15,6.96264265]
[1761384257446,4.0277267,194.2,194.15,6.96264265]
[1761384257640,4.0277267,194.19,194.15,6.96264265]
[1761384257845,4.0277267,194.18,194.15,6.96264265]
[1761384258047,7.51161158,194.22,194.15,6.96264265]
[1761384258241,8.59451288,194.21,194.15,6.96264265]
[1761384258440,6.78206346,194.2,194.15,4.6349]
[1761384258643,4.04206346,194.19,194.15,6.96264265]
[1761384258844,4.04206346,194.18,194.15,6.96264265]
[1761384259045,4.04206346,194.17,194.15,6.96264265]
[1761384259241,4.57244732,194.19,194.15,6.96264265]
[1761384259447,4.01549953,194.18,194.15,4.6349]
[1761384259644,4.01549953,194.17,194.15,6.96264265]
[1761384259845,4.01549953,194.16,194.15,6.96264265]
[1761384260345,2.74,194.2,194.15,6.96264265]
[1761384260647,3.90017021,194.19,194.15,6.96264265]
[1761384260846,3.90017021,194.18,194.15,6.96264265]
[1761384261046,3.90017021,194.17,194.15,4.6349]
[1761384261248,2.74,194.2,194.15,4.6349]
[1761384261442,3.89999518,194.19,194.15,4.6349]
[1761384261643,3.89999518,194.18,194.15,4.6349]
[1761384261844,2.74,194.2,194.15,4.6349]
[1761384262043,3.89999518,194.19,194.15,4.6349]
[1761384262247,3.89999518,194.18,194.15,4.6349]
[1761384262442,2.74,194.2,194.15,4.6349]
[1761384262646,3.90088101,194.19,194.15,4.6349]
[1761384262845,3.90088101,194.18,194.15,4.6349]
[1761384263048,2.74,194.2,194.15,4.6349]
[1761384263241,3.90088291,194.19,194.15,4.6349]
[1761384263446,3.90088291,194.18,194.15,4.6349]
[1761384263646,2.74,194.2,194.15,4.6349]
[1761384263842,3.90066253,194.19,194.15,4.6349]
[1761384264046,3.90066253,194.18,194.15,4.6349]
[1761384264349,2.74,194.2,194.15,4.6349]
[1761384264550,3.90065741,194.19,194.15,4.6349]
[1761384264751,2.74,194.2,194.15,4.6349]
[1761384264946,3.90065741,194.19,194.15,4.6349]
[1761384265256,2.74,194.2,194.15,4.6349]
[1761384265455,3.90057705,194.19,194.15,4.6349]
[1761384265753,2.74,194.2,194.15,4.6349]
[1761384265958,3.90091436,194.19,194.15,4.6349]
[1761384266148,2.74,194.2,194.15,4.6349]
[1761384266851,2.74,194.15,193.97,15.46]
[1761384267046,2.74,194.15,193.92,12.69131133]
[1761384267047,1.49311938,194.08,194.0,205.94]
[1761384267246,2.74,194.06,194.01,62.86]
[1761384267655,2.74,194.06,194.0,205.94]
[1761384267958,2.74,194.06,194.01,62.84]
[1761384268254,6.40042896,194.16,194.0,205.94]
[1761384268255,2.74,194.04,194.0,205.94]
[1761384268446,2.74,194.04,194.01,62.88]
[1761384268643,4.23311938,194.04,194.02,62.88]
[1761384269048,2.74,194.04,194.02,62.88]
[1761384269647,2.74,194.04,194.03,62.9]
[1761384269849,2.74,194.04,194.03,62.88]
[1761384270255,2.74,194.04,194.0,207.43311938]
[1761384270455,2.74,194.04,194.03,62.88]
[1761384271344,2.74,194.04,194.0,205.94]
[1761384271547,2.74,194.04,194.01,62.88]
[1761384271748,2.74,194.04,194.0,205.94]
[1761384272150,2.74,194.04,194.01,62.88]
[1761384272352,2.74,194.04,194.0,205.94]
[1761384272551,2.74,194.04,194.01,62.88]
[1761384273561,2.74,194.04,194.0,205.94]
[1761384273756,2.74,194.04,194.02,62.88]
[1761384275249,2.74,194.04,194.0,205.94]
[1761384275661,2.74,194.04,194.01,62.86]
[1761384276659,2.74,194.04,194.0,205.94]
[1761384276962,2.74,194.04,194.01,62.86]
[1761384278263,2.74,194.04,194.0,205.94]
[1761384278466,2.74,194.04,194.02,62.84]
[1761384279168,2.74,194.04,194.0,205.94]
[1761384279668,2.74,194.04,194.01,62.84]
[1761384279966,2.74,194.04,194.02,62.84]
[1761384280266,2.74,194.04,194.0,205.94]
[1761384280466,2.74,194.04,194.01,62.82]
[1761384281173,2.74,194.04,194.0,205.94]
[1761384281363,2.74,194.04,194.01,62.82]
[1761384282170,2.74,194.04,194.0,205.94]
[1761384282469,2.74,194.04,194.01,62.82]
[1761384282665,2.74,194.04,194.02,62.82]
[1761384283473,2.74,194.04,194.0,205.94]
[1761384283674,2.74,194.04,194.03,62.82]
[1761384284769,2.74,194.04,194.03,62.8]
[1761384285073,2.74,194.04,194.0,205.94]
[1761384285274,2.74,194.04,194.01,62.8]
[1761384285663,2.74,194.04,194.0,205.94]
[1761384285868,2.74,194.04,194.02,62.8]
[1761384286275,2.74,194.04,194.0,205.94]
[1761384286475,2.74,194.04,194.01,62.8]
[1761384286774,2.74,194.04,194.0,205.94]
[1761384287675,2.74,194.04,194.01,62.8]
[1761384288177,2.74,194.04,194.0,205.94]
[1761384288676,2.74,194.04,194.01,62.78]
[1761384289074,2.74,194.04,194.0,205.94]
[1761384289277,2.74,194.04,194.01,62.78]
[1761384289668,2.74,194.04,194.02,62.78]
[1761384290474,2.74,194.04,194.0,205.94]
[1761384291164,2.74,194.04,194.01,62.76]
[1761384291372,2.74,194.04,194.02,62.76]
[1761384291875,2.74,194.04,194.0,205.94]
[1761384292075,2.74,194.04,194.03,62.76]
[1761384292777,2.74,194.04,194.0,205.94]
[1761384292978,2.74,194.04,194.01,62.76]
[1761384293578,2.74,194.04,194.0,205.94]
[1761384293777,2.74,194.04,194.01,62.74]
[1761384293969,2.74,194.04,194.02,62.74]
[1761384294381,2.74,194.04,194.0,205.94]
[1761384294581,2.74,194.04,194.01,62.74]
[1761384294969,2.74,194.04,194.02,62.74]
[1761384295173,2.74,194.04,194.0,205.94]
[1761384295370,2.74,194.04,194.01,62.74]
[1761384296478,2.74,194.04,194.0,205.94]
[1761384296683,2.74,194.04,194.01,62.72]
[1761384296872,2.74,194.04,194.02,62.72]
[1761384297073,2.74,194.04,194.0,205.94]
[1761384297275,2.74,194.04,194.03,62.72]
[1761384297577,2.74,194.04,194.0,205.94]
[1761384297977,2.74,194.04,194.01,62.72]
[1761384298476,2.74,194.04,194.02,62.72]
[1761384299377,2.74,194.04,194.0,205.94]